fUST/lending_fUST_20240709
["ID","MTS","AMOUNT","RATE_DAILY","PERIOD"]
[331572390,1720525840937,-3000.0,0.0002733,2]
[331572391,1720525840947,-3000.0,0.0002734,2]
[331572392,1720525840956,-3000.0,0.0002735,2]
[331572393,1720525840966,-3000.0,0.0002736,2]
[331572394,1720525840976,-3000.0,0.0002737,2]
[331572395,1720525840986,-3000.0,0.0002738,2]
[331572396,1720525841062,-3000.0,0.0002739,2]
[331572397,1720525841072,-500.0,0.00027397,2]
[331572398,1720525841082,-500.0,0.00027397,2]
[331572399,1720525841091,-500.0,0.00027397,2]
[331572400,1720525841100,-500.0,0.00027397,2]
[331572401,1720525841110,-500.0,0.00027397,2]
[331572402,1720525841119,-500.0,0.00027397,2]
[331572403,1720525841128,-500.0,0.00027397,2]
[331572404,1720525841138,-500.0,0.00027397,2]
[331572405,1720525841147,-500.0,0.00027397,2]
[331572406,1720525841156,-500.0,0.00027397,2]
[331572407,1720525841166,-500.0,0.00027397,2]
[331572408,1720525841175,-252.75702844,0.00027397,2]
[331572409,1720525841184,-500.0,0.00027397,2]
[331572410,1720525841194,-500.0,0.00027397,2]
[331572411,1720525841203,-500.0,0.00027397,2]
[331572412,1720525841218,-500.0,0.00027397,2]
[331572413,1720525841227,-500.0,0.00027397,2]
[331572414,1720525841237,-500.0,0.00027397,2]
[331572415,1720525841246,-500.0,0.00027397,2]
[331572416,1720525841257,-500.0,0.00027397,2]
[331572417,1720525841266,-500.0,0.00027397,2]
[331572418,1720525841275,-500.0,0.00027397,2]
[331572419,1720525841286,-500.0,0.00027397,2]
[331572420,1720525841296,-500.0,0.00027397,2]
[331572421,1720525841305,-401.04584833,0.00027397,2]
[331572422,1720525841314,-500.0,0.00027397,2]
[331572423,1720525841323,-500.0,0.00027397,2]
[331572424,1720525841333,-500.0,0.00027397,2]
[331572425,1720525841342,-500.0,0.00027397,2]
[331572426,1720525841351,-250.0,0.00027397,2]
[331572427,1720525841360,-500.0,0.00027397,2]
[331572428,1720525841369,-500.0,0.00027397,2]
[331572429,1720525841379,-500.0,0.00027397,2]
[331572430,1720525841388,-500.0,0.00027397,2]
[331572431,1720525841398,-237.68854502,0.00027397,2]
[331572432,1720525841407,-500.0,0.00027397,2]
[331572433,1720525841416,-500.0,0.00027397,2]
[331572434,1720525841426,-239.53276638,0.00027397,2]
[331572435,1720525841435,-500.0,0.00027397,2]
[331572436,1720525841444,-500.0,0.00027397,2]
[331572437,1720525841454,-237.68854502,0.00027397,2]
[331572438,1720525841466,-500.0,0.00027397,2]
[331572439,1720525841475,-513.91969052,0.00027397,2]
[331572440,1720525841484,-500.0,0.00027397,2]
[331572441,1720525841494,-500.0,0.00027397,2]
[331572442,1720525841505,-500.0,0.00027397,2]
[331572443,1720525841515,-500.0,0.00027397,2]
[331572444,1720525841524,-237.68854502,0.00027397,2]
[331572445,1720525841535,-237.68854502,0.00027397,2]
[331572446,1720525841545,-500.0,0.00027397,2]
[331572447,1720525841556,-237.68854502,0.00027397,2]
[331572448,1720525841565,-500.0,0.00027397,2]
[331572449,1720525841574,-500.0,0.00027397,2]
[331572450,1720525841583,-500.0,0.00027397,2]
[331572451,1720525841592,-500.0,0.00027397,2]
[331572452,1720525841601,-500.0,0.00027397,2]
[331572453,1720525841610,-500.0,0.00027397,2]
[331572454,1720525841621,-513.91969052,0.00027397,2]
[331572455,1720525841630,-500.0,0.00027397,2]
[331572456,1720525841639,-563.91969052,0.00027397,2]
[331572457,1720525841648,-500.0,0.00027397,2]
[331572458,1720525841657,-500.0,0.00027397,2]
[331572459,1720525841666,-500.0,0.00027397,2]
[331572460,1720525841676,-277.83938104,0.00027397,2]
[331572461,1720525841685,-500.0,0.00027397,2]
[331572462,1720525841696,-500.0,0.00027397,2]
[331572463,1720525841706,-239.53276638,0.00027397,2]
[331572464,1720525841717,-500.0,0.00027397,2]
[331572465,1720525841727,-237.68854502,0.00027397,2]
[331572466,1720525841736,-500.0,0.00027397,2]
[331572467,1720525841746,-500.0,0.00027397,2]
[331572468,1720525841756,-239.53276635,0.00027397,2]
[331572469,1720525841767,-500.0,0.00027397,2]
[331572470,1720525841776,-237.68854502,0.00027397,2]
[331572471,1720525841785,-500.0,0.00027397,2]
[331572472,1720525841795,-237.68854502,0.00027397,2]
[331572473,1720525841804,-500.0,0.00027397,2]
[331572474,1720525841813,-500.0,0.00027397,2]
[331572475,1720525841822,-563.91969052,0.00027397,2]
[331572476,1720525841831,-500.0,0.00027397,2]
[331572477,1720525841840,-361.6373675,0.00027397,2]
[331572478,1720525841849,-500.0,0.00027397,2]
[331572479,1720525841858,-500.0,0.00027397,2]
[331572480,1720525841867,-500.0,0.00027397,2]
[331572481,1720525841877,-500.0,0.00027397,2]
[331572482,1720525841886,-500.0,0.00027397,2]
[331572483,1720525841895,-279.49918026,0.00027397,2]
[331572484,1720525841905,-1290.51968029,0.00027397,2]
[331572485,1720525841914,-1290.51968029,0.00027397,2]
[331572486,1720525841924,-1290.51968029,0.00027397,2]
[331572487,1720525841933,-1290.51968029,0.00027397,2]
[331572488,1720525841942,-500.0,0.00027397,2]
[331572489,1720525841951,-500.0,0.00027397,2]
[331572490,1720525841960,-14650.15910596,0.00027397,2]
[331572491,1720525841969,-191.0559141,0.00027397,120]
[331572492,1720525841979,-3000.0,0.000274,2]
[331572493,1720525841989,-3000.0,0.0002741,2]
[331572494,1720525841999,-3000.0,0.0002742,2]
[331572495,1720525842008,-3000.0,0.0002743,2]
[331572496,1720525842018,-3000.0,0.0002744,2]
[331572497,1720525842028,-151.44589054,0.00027448,2]
[331572498,1720525842038,-3000.0,0.0002745,2]
[331572499,1720525842048,-3000.0,0.0002746,2]
[331572500,1720525842057,-3000.0,0.0002747,2]
[331572501,1720525842066,-3000.0,0.0002748,2]
[331572502,1720525842075,-3000.0,0.0002749,2]
[331572503,1720525842084,-43657.05388,0.000275,2]
[331572504,1720525842093,-3000.0,0.000275,2]
[331572505,1720525842103,-3000.0,0.0002751,2]
[331572506,1720525842113,-3000.0,0.0002752,2]
[331572507,1720525842123,-3000.0,0.0002753,2]
[331572508,1720525842134,-3000.0,0.0002754,2]
[331572509,1720525842143,-3027.51034,0.0002755,2]
[331572510,1720525842154,-550.0,0.00027781,2]
[331572511,1720525842163,-1328.65900423,0.000279,2]
[331572512,1720525842174,-31473.42748963,0.0002799,2]
[331572513,1720525842183,-172.42394717,0.00028,30]
[331572514,1720525842193,-503.79102748,0.00028,2]
[331572515,1720525842203,-650.0,0.00028329,2]
[331572516,1720525842218,-798.33156433,0.000285,2]
[331572517,1720525842229,-5910.9073751,0.00028768,2]
[331572518,1720525842239,-189961.79213932,0.0002877,2]
[331572519,1720525842248,-151.0,0.0002877,7]
[331572520,1720525842259,-151.0,0.0002877,7]
[331572521,1720525842270,-151.0,0.0002877,7]
[331572522,1720525842279,-151.0,0.0002877,7]
[331572523,1720525842291,-151.0,0.0002877,7]
[331572524,1720525842303,-151.0,0.0002877,7]
[331572525,1720525842313,-151.0,0.0002877,7]
[331572526,1720525842323,-750.0,0.00028877,2]
[331572527,1720525842333,-4706.87941246,0.000289,2]
[331572528,1720525842343,-849.30884963,0.00029,2]
[331572529,1720525842352,-3000.0,0.000291,2]
[331572530,1720525842361,-3000.0,0.0002911,2]
[331572531,1720525842371,-3000.0,0.0002912,2]
[331572532,1720525842381,-3000.0,0.0002913,2]
[331572533,1720525842450,-3000.0,0.0002914,2]
[331572534,1720525842460,-3000.0,0.0002915,2]
[331572535,1720525842470,-3000.0,0.0002916,2]
[331572536,1720525842479,-3000.0,0.0002917,2]
[331572537,1720525842489,-3000.0,0.0002918,2]
[331572538,1720525842498,-3000.0,0.0002919,2]
[331572539,1720525842507,-290.926158,0.0002919,7]
[331572540,1720525842516,-151.0,0.0002919,7]
[331572541,1720525842525,-3000.0,0.000292,2]
[331572542,1720525842534,-3000.0,0.0002921,2]
[331572543,1720525842543,-3000.0,0.0002922,2]
[331572544,1720525842552,-3000.0,0.0002923,2]
[331572545,1720525842560,-3000.0,0.0002924,2]
[331572546,1720525842570,-3000.0,0.0002925,2]
[331572547,1720525842578,-3000.0,0.0002926,2]
[331572548,1720525842588,-3000.0,0.0002927,2]
[331572549,1720525842598,-3000.0,0.0002928,2]
[331572550,1720525842607,-3000.0,0.0002929,2]
[331572551,1720525842616,-3000.0,0.000293,2]
[331572552,1720525842625,-3000.0,0.0002931,2]
[331572553,1720525842636,-3000.0,0.0002932,2]
[331572554,1720525842646,-3000.0,0.0002933,2]
[331572555,1720525842655,-3000.0,0.0002934,2]
[331572556,1720525842665,-3000.0,0.0002935,2]
[331572557,1720525842680,-3000.0,0.0002936,2]
[331572558,1720525842690,-3000.0,0.0002937,2]
[331572559,1720525842699,-3000.0,0.0002938,2]
[331572560,1720525842708,-3000.0,0.0002939,2]
[331572561,1720525842718,-3000.0,0.000294,2]
[331572562,1720525842727,-3000.0,0.0002941,2]
[331572563,1720525842737,-3000.0,0.0002942,2]
[331572564,1720525842746,-850.0,0.00029425,2]
[331572565,1720525842756,-3000.0,0.0002943,2]
[331572566,1720525842765,-3000.0,0.0002944,2]
[331572567,1720525842774,-3000.0,0.0002945,2]
[331572568,1720525842783,-3000.0,0.0002946,2]
[331572569,1720525842793,-3000.0,0.0002947,2]
[331572570,1720525842802,-3000.0,0.0002948,2]
[331572571,1720525842812,-3000.0,0.0002949,2]
[331572572,1720525842821,-3000.0,0.000295,2]
[331572573,1720525842831,-3000.0,0.0002951,2]
[331572574,1720525842840,-3000.0,0.0002952,2]
[331572575,1720525842850,-3000.0,0.0002953,2]
[331572576,1720525842860,-3000.0,0.0002954,2]
[331572577,1720525842869,-3000.0,0.0002955,2]
[331572578,1720525842879,-3000.0,0.0002956,2]
[331572579,1720525842888,-3432.907333,0.0002957,2]
[331572580,1720525842898,-153.20766236,0.00029799,2]
[331572581,1720525842908,-248.18592096,0.000298,120]
[331572582,1720525842921,-9620.57851854,0.00029879,2]
[331572583,1720525842930,-950.0,0.00029973,2]
[331572584,1720525842940,-170.45207762,0.0003,4]
[331572585,1720525842948,-752.61886642,0.0003,2]
[331572586,1720525842957,-304.22675637,0.0003,30]
[331572587,1720525842966,-220.0,0.0003,2]
[331572588,1720525842975,-1050.0,0.00030521,2]
[331572589,1720525842983,-150.0,0.00030799,2]
[331572590,1720525842992,-873.03561247,0.00031069,2]
[331572591,1720525843001,-150.0,0.00031799,2]
[331572592,1720525843010,-500.30375304,0.00032,30]
[331572593,1720525843019,-970.944185,0.00032877,7]
[331572594,1720525843027,-970.944185,0.00032877,7]
[331572595,1720525843037,-150.0,0.0003295,2]
[331572596,1720525843046,-220.0,0.00033,2]
[331572597,1720525843055,-220.0,0.00033,2]
[331572598,1720525843064,-180.953508,0.00033295,2]
[331572599,1720525843073,-637.5,0.00033295,2]
[331572600,1720525843082,-151.0,0.00033333,7]
[331572601,1720525843092,-151.0,0.00033333,7]
[331572603,1720525843103,-151.0,0.00033333,7]
[331572604,1720525843112,-151.0,0.00033333,7]
[331572605,1720525843121,-151.0,0.00033333,7]
[331572607,1720525843131,-151.0,0.00033333,7]
[331572608,1720525843140,-231.274829,0.00033333,7]
[331572609,1720525843149,-970.944185,0.00033333,7]
[331572611,1720525843158,-970.944185,0.00033333,7]
[331572614,1720525843170,-45588.97463967,0.00033333,2]
[331572619,1720525843184,-2914.99640697,0.00033333,2]
[331572686,1720525847284,-6680.56,0.00027174,3]
[331572687,1720525847293,-29640.12912396,0.00033333,2]
[331572696,1720526634991,232.89836254,0.00014999,2]
[331572708,1720526746184,-225.71833691,0.0002,2]
[331572709,1720526746204,-750.0,0.00021096,2]
[331572710,1720526746224,-162.72364,0.00024291,2]
[331572711,1720526746247,-380.0,0.00024658,2]
[331572712,1720526746268,-200.0,0.00024927,2]
[331572713,1720526746287,-300.0,0.000255,2]
[331572714,1720526746306,-300.0,0.000255,2]
[331572715,1720526746324,-5253.05949016,0.00025501,2]
[331572722,1720526826174,-2132.69930736,0.0001818,2]
[331572723,1720526826195,-157.739743,0.00021096,2]
[331572724,1720526826214,-1874.04683008,0.00023401,2]
[331572725,1720526826233,-15536.52599956,0.00025501,2]
[331572726,1720526827097,-79279.93567284,0.00025501,2]
[331572727,1720526827118,-168.94549826,0.00025698,2]
[331572728,1720526827139,-168.243381,0.00025798,2]
[331572729,1720526827162,-22394.63738593,0.0002614,2]
[331572730,1720526840101,-428.24738691,0.00025501,2]
[331572731,1720526840121,-2505.36261407,0.0002614,2]
[331572732,1720526840141,-250.0,0.00026188,2]
[331572733,1720526840160,-208.54201475,0.00026764,2]
[331572734,1720526840179,-150.0,0.00026764,2]
[331572735,1720526840198,-150.47620585,0.00027122,2]
[331572736,1720526840217,-51606.9774385,0.00027174,3]
[331572737,1720526840241,-167.038957,0.00027178,2]
[331572738,1720526840259,-167.038957,0.00027178,120]
[331572739,1720526840282,-30000.0,0.00027184,2]
[331572740,1720526840302,-750.0,0.00027195,2]
[331572741,1720526840321,-9479.6946624,0.00027252,2]
[331572742,1720526840341,-3000.0,0.000273,2]
[331572743,1720526840360,-3000.0,0.0002731,2]
[331572744,1720526840380,-12740.84973745,0.0002731,3]
[331572791,1720527031820,-168.243381,0.00025752,2]
[331572792,1720527031829,-290.58816915,0.00026181,2]
[331572843,1720527037862,-24002.51548915,0.00026181,2]
[331572845,1720527037871,-385.33783146,0.00027173,16]
[331572847,1720527037881,-100000.0,0.00027184,2]
[331572849,1720527037890,-168.94549826,0.0002721,2]
[331572851,1720527037899,-2920.78466352,0.00027249,2]
[331572853,1720527037908,-2000.0,0.0002729,2]
[331572855,1720527037918,-6863.87493251,0.0002731,2]
[331572857,1720527037928,-189.22156458,0.0002731,2]
[331572859,1720527037937,-500.0,0.0002731,2]
[331572861,1720527037947,-763.79636746,0.0002731,2]
[331572863,1720527037956,-394.11469993,0.0002731,30]
[331572865,1720527037965,-225.71833691,0.0002731,2]
[331572867,1720527037975,-428.24738691,0.0002731,2]
[331572869,1720527037983,-3000.0,0.0002732,2]
[331572871,1720527037992,-3000.0,0.0002733,2]
[331572873,1720527038001,-3000.0,0.0002734,2]
[331572875,1720527038011,-3000.0,0.0002735,2]
[331572877,1720527038021,-3000.0,0.0002736,2]
[331572878,1720527038031,-3000.0,0.0002737,2]
[331572880,1720527038040,-4793.92,0.00027377,3]
[331572882,1720527038049,-4768.15,0.00027377,3]
[331572884,1720527038058,-3000.0,0.0002738,2]
[331572885,1720527038067,-45726.35374931,0.00027387,3]
[331572914,1720527040947,-2663.23233039,0.00027387,3]
[331572915,1720527040958,-3000.0,0.0002739,2]
[331572916,1720527040968,-500.0,0.00027397,2]
[331572917,1720527040978,-541.36885219,0.00027397,2]
[331572918,1720527040989,-541.36885219,0.00027397,2]
[331572919,1720527040999,-500.0,0.00027397,2]
[331572920,1720527041008,-361.6373675,0.00027397,2]
[331572921,1720527041018,-541.36885219,0.00027397,2]
[331572922,1720527041027,-401.04584833,0.00027397,2]
[331572923,1720527041036,-541.36885219,0.00027397,2]
[331572924,1720527041046,-541.36885219,0.00027397,2]
[331572925,1720527041056,-541.36885219,0.00027397,2]
[331572926,1720527041064,-541.36885219,0.00027397,2]
[331572927,1720527041074,-541.36885219,0.00027397,2]
[331572928,1720527041083,-541.36885219,0.00027397,2]
[331572929,1720527041092,-541.36885219,0.00027397,2]
[331572930,1720527041101,-541.36885219,0.00027397,2]
[331572931,1720527041111,-541.36885219,0.00027397,2]
[331572932,1720527041120,-541.36885219,0.00027397,2]
[331572933,1720527041129,-541.36885219,0.00027397,2]
[331572934,1720527041138,-541.36885219,0.00027397,2]
[331572935,1720527041147,-541.36885219,0.00027397,2]
[331572936,1720527041157,-541.36885219,0.00027397,2]
[331572937,1720527041167,-541.36885219,0.00027397,2]
[331572938,1720527041177,-541.36885219,0.00027397,2]
[331572939,1720527041186,-541.36885219,0.00027397,2]
[331572940,1720527041195,-541.36885219,0.00027397,2]
[331572941,1720527041204,-541.36885219,0.00027397,2]
[331572942,1720527041214,-541.36885219,0.00027397,2]
[331572943,1720527041223,-541.36885219,0.00027397,2]
[331572944,1720527041232,-541.36885219,0.00027397,2]
[331572945,1720527041241,-541.36885219,0.00027397,2]
[331572946,1720527041250,-541.36885219,0.00027397,2]
[331572947,1720527041263,-541.36885219,0.00027397,2]
[331572948,1720527041282,-541.36885219,0.00027397,2]
[331572949,1720527041296,-541.36885219,0.00027397,2]
[331572950,1720527041312,-541.36885219,0.00027397,2]
[331572951,1720527041329,-541.36885219,0.00027397,2]
[331572952,1720527041345,-541.36885219,0.00027397,2]
[331572953,1720527041362,-541.36885219,0.00027397,2]
[331572954,1720527041377,-541.36885219,0.00027397,2]
[331572955,1720527041391,-541.36885219,0.00027397,2]
[331572956,1720527041408,-541.36885219,0.00027397,2]
[331572957,1720527041423,-541.36885219,0.00027397,2]
[331572958,1720527041435,-541.36885219,0.00027397,2]
[331572959,1720527041449,-541.36885219,0.00027397,2]
[331572960,1720527041462,-541.36885219,0.00027397,2]
[331572961,1720527041478,-541.36885219,0.00027397,2]
[331572962,1720527041494,-541.36885219,0.00027397,2]
[331572963,1720527041508,-541.36885219,0.00027397,2]
[331572964,1720527041519,-541.36885219,0.00027397,2]
[331572965,1720527041533,-541.36885219,0.00027397,2]
[331572966,1720527041550,-541.36885219,0.00027397,2]
[331572967,1720527041562,-541.36885219,0.00027397,2]
[331572968,1720527041576,-541.36885219,0.00027397,2]
[331572969,1720527041591,-541.36885219,0.00027397,2]
[331572970,1720527041603,-541.36885219,0.00027397,2]
[331572971,1720527041616,-541.36885219,0.00027397,2]
[331572972,1720527041628,-541.36885219,0.00027397,2]
[331572973,1720527041642,-541.36885219,0.00027397,2]
[331572974,1720527041657,-541.36885219,0.00027397,2]
[331572975,1720527041670,-541.36885219,0.00027397,2]
[331572976,1720527041683,-541.36885219,0.00027397,2]
[331572977,1720527041696,-191.0559141,0.00027397,120]
[331572978,1720527041709,-9620.57851854,0.00027999,2]
[331572979,1720527041722,-172.42394717,0.00028,30]
[331572980,1720527041734,-503.69054059,0.00028,2]
[331572981,1720527041748,-1874.04683008,0.00028401,2]
[331572982,1720527041760,-2920.78466348,0.00029079,2]
[331572983,1720527041773,-3000.0,0.000291,2]
[331572984,1720527041786,-3000.0,0.0002911,2]
[331572985,1720527041798,-3000.0,0.0002912,2]
[331572986,1720527041811,-3000.0,0.0002913,2]
[331572987,1720527041823,-3000.0,0.0002914,2]
[331572988,1720527041836,-3000.0,0.0002915,2]
[331572989,1720527041849,-3000.0,0.0002916,2]
[331572990,1720527041861,-3000.0,0.0002917,2]
[331572991,1720527041874,-3000.0,0.0002918,2]
[331572992,1720527041884,-3000.0,0.0002919,2]
[331572993,1720527041893,-225.76386745,0.00029199,2]
[331572994,1720527041903,-270.12333098,0.00029199,2]
[331572995,1720527042005,-500.0,0.00029199,2]
[331572996,1720527042021,-500.0,0.00029199,2]
[331572997,1720527042030,-500.0,0.00029199,2]
[331572998,1720527042039,-500.0,0.00029199,2]
[331572999,1720527042049,-500.0,0.00029199,2]
[331573000,1720527042058,-500.0,0.00029199,2]
[331573001,1720527042066,-500.0,0.00029199,2]
[331573002,1720527042076,-204.11144005,0.00029199,2]
[331573003,1720527042085,-500.0,0.00029199,2]
[331573004,1720527042094,-500.0,0.00029199,2]
[331573005,1720527042103,-500.0,0.00029199,2]
[331573006,1720527042112,-479.09451519,0.00029199,2]
[331573007,1720527042121,-500.0,0.00029199,2]
[331573008,1720527042130,-500.0,0.00029199,2]
[331573009,1720527042140,-300.0,0.00029199,2]
[331573010,1720527042149,-3000.0,0.000292,2]
[331573011,1720527042159,-96779.1721594,0.000292,3]
[331573012,1720527042168,-3000.0,0.0002921,2]
[331573013,1720527042178,-52063.29736793,0.0002921,3]
[331573014,1720527042187,-3000.0,0.0002922,2]
[331573015,1720527042196,-3000.0,0.0002923,2]
[331573016,1720527042205,-3000.0,0.0002924,2]
[331573017,1720527042214,-3000.0,0.0002925,2]
[331573018,1720527042223,-3000.0,0.0002926,2]
[331573019,1720527042232,-168.243381,0.00029262,2]
[331573020,1720527042243,-3000.0,0.0002927,2]
[331573021,1720527042252,-3000.0,0.0002928,2]
[331573022,1720527042263,-3000.0,0.0002929,2]
[331573023,1720527042272,-3000.0,0.000293,2]
[331573024,1720527042282,-3000.0,0.0002931,2]
[331573025,1720527042291,-3000.0,0.0002932,2]
[331573027,1720527042300,-3000.0,0.0002933,2]
[331573028,1720527042310,-3000.0,0.0002934,2]
[331573029,1720527042319,-3000.0,0.0002935,2]
[331573030,1720527042330,-48389.5860797,0.0002935,3]
[331573031,1720527042339,-150.0,0.00029356,2]
[331573032,1720527042350,-3000.0,0.0002936,2]
[331573034,1720527042359,-3000.0,0.0002937,2]
[331573035,1720527042369,-3000.0,0.0002938,2]
[331573036,1720527042378,-3000.0,0.0002939,2]
[331573037,1720527042387,-3000.0,0.000294,2]
[331573038,1720527042396,-3000.0,0.0002941,2]
[331573039,1720527042405,-3000.0,0.0002942,2]
[331573040,1720527042414,-3000.0,0.0002943,2]
[331573042,1720527042423,-3000.0,0.0002944,2]
[331573043,1720527042432,-3000.0,0.0002945,2]
[331573045,1720527042441,-3000.0,0.0002946,2]
[331573046,1720527042450,-3000.0,0.0002947,2]
[331573048,1720527042458,-3000.0,0.0002948,2]
[331573049,1720527042467,-3000.0,0.0002949,2]
[331573051,1720527042476,-3000.0,0.000295,2]
[331573053,1720527042485,-3000.0,0.0002951,2]
[331573055,1720527042494,-48389.5860797,0.0002951,3]
[331573056,1720527042503,-3000.0,0.0002952,2]
[331573058,1720527042512,-3000.0,0.0002953,2]
[331573059,1720527042521,-3000.0,0.0002954,2]
[331573061,1720527042529,-3000.0,0.0002955,2]
[331573063,1720527042538,-3000.0,0.0002956,2]
[331573065,1720527042547,-3432.907333,0.0002957,2]
[331573066,1720527042556,-48389.5860797,0.00029803,3]
[331573068,1720527042565,-100069.52116256,0.00029813,2]
[331573069,1720527042575,-160.66266123,0.00029817,2]
[331573070,1720527042588,-30000.0,0.00029823,2]
[331573071,1720527042597,-3529.11519136,0.00029879,2]
[331573072,1720527042606,-250.0,0.00029904,2]
[331573074,1720527042616,-170.45207762,0.0003,4]
[331573076,1720527042625,-220.0,0.0003,2]
[331573078,1720527042634,-350.0,0.00030452,2]
[331573080,1720527042643,-157.739743,0.00030753,2]
[331573082,1720527042652,-2920.78466348,0.00030909,2]
[331573084,1720527042664,-450.0,0.00031,2]
[331573086,1720527042674,-162.8026404,0.00031324,2]
[331573088,1720527042684,-550.0,0.00031548,2]
[331573090,1720527042692,-650.0,0.00032096,2]
[331573091,1720527042704,-542.91908892,0.00032229,4]
[331573093,1720527042713,-780.52486934,0.00032229,4]
[331573095,1720527042722,-750.0,0.00032644,2]
[331573097,1720527042731,-2920.78466348,0.00032739,2]
[331573099,1720527042740,-151.44589054,0.000329,2]
[331573101,1720527042749,-5292.21400908,0.00032902,2]
[331573103,1720527042758,-220.0,0.00033,2]
[331573105,1720527042767,-934.66703789,0.00033102,4]
[331573107,1720527042776,-150.0,0.00033108,2]
[331573109,1720527042785,-366.61198732,0.00033112,2]
[331573111,1720527042794,-850.0,0.00033192,2]
[331573113,1720527042803,-750.0,0.00033295,2]
[331573115,1720527042813,-315.3,0.00033333,2]
[331573117,1720527042822,-284.56366131,0.00033333,3]
[331573119,1720527042832,-6134.24034193,0.00033333,10]
[331573121,1720527042842,-10601.21049473,0.00033333,2]
[331573123,1720527042852,-1874.04683008,0.00033401,2]
[331573125,1720527042861,-950.0,0.0003374,2]
[331573127,1720527042871,-1050.0,0.00034288,2]
[331573129,1720527042880,-1431.78470865,0.00034462,2]
[331573131,1720527042890,-981.22062177,0.00034467,4]
[331573133,1720527042899,-2002.4019077,0.0003455,4]
[331573135,1720527042908,-1484.29833384,0.0003456,4]
[331573136,1720527042917,-34.76422679,0.00034563,4]
[331573153,1720527043460,-600.3431214,0.00032229,4]
[331573154,1720527043470,-2196.40771411,0.00034563,4]
[331573155,1720527043479,-2920.78466348,0.00034569,2]
[331573156,1720527043489,-160.04606779,0.00034588,2]
[331573157,1720527043499,-212.91402171,0.00034602,4]
[331573158,1720527043508,-1557.51416039,0.00034623,4]
[331573159,1720527043518,-1274.94810996,0.00034634,4]
[331573160,1720527043590,-643.5565645,0.00034642,4]
[331573161,1720527043602,-643.5565645,0.00034642,4]
[331573162,1720527043612,-617.05152364,0.0003468,4]
[331573163,1720527043624,-554.63473576,0.0003468,4]
[331573164,1720527043635,-714.79757036,0.00034688,4]
[331573165,1720527043644,-1282.49405735,0.00034728,12]
[331573166,1720527043659,-150.0,0.0003481,2]
[331573167,1720527043668,-873.03561247,0.00034835,2]
[331573168,1720527043678,-153.20766236,0.00034889,2]
[331573169,1720527043687,-154.59033561,0.00034899,4]
[331573170,1720527043697,-84950.01230444,0.000349,2]
[331573185,1720527207678,12150.0,0.00025,120]
[331573219,1720527940179,-682.886987,0.00021096,2]
[331573220,1720527940197,-300.0,0.0002294,2]
[331573221,1720527940216,-9620.57851854,0.00022941,2]
[331573222,1720527940235,-167.060845,0.00023759,2]
[331573223,1720527940253,-608.5665371,0.00023888,2]
[331573224,1720527940272,-749.607592,0.00024054,2]
[331573225,1720527940291,-167.060845,0.00024839,2]
[331573226,1720527940309,-428.24738691,0.00025,2]
[331573227,1720527940328,-189.22156458,0.00025,2]
[331573228,1720527940346,-284.26271461,0.00025,2]
[331573229,1720527940364,-225.71833691,0.00025,2]
[331573230,1720527940383,-763.79636746,0.00025,2]
[331573231,1720527940403,-6863.87493251,0.00025,2]
[331573232,1720527940421,-500.0,0.00025,2]
[331573233,1720527940440,-168.94549826,0.00025146,2]
[331573234,1720527940473,-8611.2270237,0.00025229,2]
[331573258,1720528232019,-735.499496,0.00021096,2]
[331573259,1720528232034,-1249.36455339,0.00023129,2]
[331573260,1720528232050,-166.929452,0.0002363,2]
[331573261,1720528232063,-1159.23553938,0.00023966,2]
[331573262,1720528232077,-6789.04003223,0.00024723,2]
[331573324,1720528238196,-9216.82816213,0.00024723,2]